[Event "69th RUS-ch Women Higher League 2019"]
[Site "Yaroslavl"]
[Date "2019.07.03"]
[Round "6.8"]
[White "Ambartsumova, Karina"]
[Black "Maletina, Tatiana"]
[Result "1/2-1/2"]
[ECO "D02"]
[WhiteElo "2359"]
[BlackElo "2273"]
[Annotator "NA"]
[PlyCount "81"]
[EventDate "2019.06.27"]
[EventType "swiss"]
[EventCountry "RUS"]
[SourceTitle "playchess.com"]
[Source "ChessBase"]
[SourceQuality "1"]
[TimeControl "40/5400+30:1800+30"]

1. Nf3 {[%emt 0:00:00]} d5 {[%emt 0:00:00]} 2. d4 {[%emt 0:00:18]} Nf6 {[%emt 0:00:00]} 3. c4 {[%emt 0:00:33]} c6 {[%emt 0:00:00]} 4. g3 {[%emt 0:01:01]} Bg4 {[%emt 0:00:18]} 5. Ne5 {[%emt 0:11:02]} Bf5 {[%emt 0:00:05]} 6. Bg2 {[%emt 0:01:20]} e6 {[%emt 0:04:53]} 7. Qb3 {[%emt 0:08:29]} Qb6 {[%emt 0:02:45]} 8. c5 {[%emt 0:00:44]} Qxb3 {[%emt 0:00:55]} 9. axb3 {[%emt 0:00:06]} Nfd7 {[%emt 0:07:10]} 10. f4 {[%emt 0:08:00]} f6 {[%emt 0:18:50]} 11. Nxd7 {[%emt 0:04:36]} Nxd7 {[%emt 0:00:31]} 12. Nc3 {[%emt 0:03:37]} a6 {[%emt 0:00:36]} 13. O-O {[%emt 0:04:02]} Bc2 {[%emt 0:02:42]} 14. b4 {[%emt 0:02:35]} Rc8 {[%emt 0:00:05]} 15. e4 {[%emt 0:06:23]} f5 {[%emt 0:00:05]} 16. e5 {[%emt 0:12:40]} h5 {[%emt 0:00:50]} 17. Bf3 {[%emt 0:05:51]} Bd3 {[%emt 0:02:42]} 18. Rf2 {[%emt 0:00:51]} Be7 {[%emt 0:00:23]} 19. h4 {[%emt 0:01:45]} g6 {[%emt 0:00:14]} 20. Rd2 {[%emt 0:02:50]} Bc4 {[%emt 0:00:38]} 21. Be2 {[%emt 0:00:53]} Bxe2 {[%emt 0:01:02]} 22. Rxe2 {[%emt 0:00:05]} Kf8 {[%emt 0:01:11]} 23. b3 {[%emt 0:00:11]} Kg7 {[%emt 0:00:15]} 24. Rea2 {[%emt 0:00:28]} Nb8 {[%emt 0:02:11]} 25. Bd2 {[%emt 0:01:22]} Rhf8 {[%emt 0:00:17]} 26. Na4 {[%emt 0:01:19]} Bd8 {[%emt 0:01:06]} 27. Be1 {[%emt 0:01:14]} Nd7 {[%emt 0:00:41]} 28. Nc3 {[%emt 0:00:27]} Nb8 {[%emt 0:01:05]} 29. Na4 {[%emt 0:00:10]} Rf7 {[%emt 0:00:21]} 30. Bd2 {[%emt 0:00:46]} Nd7 {[%emt 0:00:33]} 31. Nc3 {[%emt 0:00:09]} Nb8 {[%emt 0:00:17]} 32. Na4 {[%emt 0:00:09]} Nd7 {[%emt 0:00:10]} 33. Nc3 {[%emt 0:00:06]} Nb8 {[%emt 0:00:05]} 34. Na4 {[%emt 0:00:04]} Nd7 {[%emt 0:00:37]} 35. Nc3 {[%emt 0:00:06]} Nb8 {[%emt 0:00:00]} 36. Na4 {[%emt 0:00:05]} Nd7 {[%emt 0:00:00]} 37. Nc3 {[%emt 0:00:03]} Nb8 {[%emt 0:00:00]} 38. Na4 {[%emt 0:00:03]} Nd7 {[%emt 0:00:04]} 39. Nc3 {[%emt 0:00:03]} Nb8 {[%emt 0:00:03]} 40. Na4 {[%emt 0:00:00]} Nd7 {[%emt 0:00:00]} 41. Nc3 1/2-1/2

[Event "69th RUS-ch Women Higher League 2019"]
[Site "Yaroslavl"]
[Date "2019.07.03"]
[Round "6.9"]
[White "Bykova, Anastasia"]
[Black "Voit, Daria"]
[Result "1-0"]
[ECO "E15"]
[WhiteElo "2229"]
[BlackElo "2339"]
[Annotator "NA"]
[PlyCount "75"]
[EventDate "2019.06.27"]
[EventType "swiss"]
[EventCountry "RUS"]
[SourceTitle "playchess.com"]
[Source "ChessBase"]
[SourceQuality "1"]
[TimeControl "40/5400+30:1800+30"]

1. d4 {[%emt 0:00:00]} Nf6 {[%emt 0:01:19]} 2. c4 {[%emt 0:00:00]} e6 {[%emt 0:00:06]} 3. Nf3 {[%emt 0:00:00]} b6 {[%emt 0:00:07]} 4. g3 {[%emt 0:00:00]} Ba6 {[%emt 0:00:13]} 5. b3 {[%emt 0:00:16]} Bb4+ {[%emt 0:00:09]} 6. Bd2 {[%emt 0:00:04]} Be7 {[%emt 0:00:09]} 7. Bg2 {[%emt 0:00:18]} c6 {[%emt 0:01:29]} 8. Bc3 {[%emt 0:00:19]} d5 {[%emt 0:00:20]} 9. Nbd2 {[%emt 0:00:12]} Nbd7 {[%emt 0:03:12]} 10. O-O {[%emt 0:00:37]} O-O {[%emt 0:01:39]} 11. Re1 {[%emt 0:00:34]} Rc8 {[%emt 0:01:59]} 12. e4 {[%emt 0:05:28]} dxe4 {[%emt 0:08:38]} 13. Nxe4 {[%emt 0:02:23]} c5 {[%emt 0:08:50]} 14. dxc5 {[%emt 0:05:47]} Nxc5 {[%emt 0:01:54]} 15. Nxc5 {[%emt 0:04:37]} Bxc5 {[%emt 0:14:12]} 16. Ne5 {[%emt 0:00:43]} Rc7 {[%emt 0:15:30]} 17. Qe2 {[%emt 0:18:32]} Bb7 {[%emt 0:08:44]} 18. Bxb7 {[%emt 0:00:50]} Rxb7 {[%emt 0:00:03]} 19. b4 {[%emt 0:04:11]} Be7 {[%emt 0:03:37]} 20. Nc6 {[%emt 0:06:09]} Qe8 {[%emt 0:01:21]} 21. b5 {[%emt 0:01:24]} Nd7 {[%emt 0:01:24]} 22. Rad1 {[%emt 0:01:49]} Nc5 {[%emt 0:08:30]} 23. Qg4 {[%emt 0:05:24]} f6 {[%emt 0:02:16]} 24. Bb4 {[%emt 0:06:36]} e5 {[%emt 0:01:23]} 25. Bxc5 {[%emt 0:07:02]} Bxc5 {[%emt 0:01:20]} 26. Rd8 {[%emt 0:01:37]} Qf7 {[%emt 0:06:21]} 27. Rxf8+ {[%emt 0:07:07]} Bxf8 {[%emt 0:00:07]} 28. Rd1 {[%emt 0:01:27]} Rc7 {[%emt 0:00:27]} 29. Rd5 {[%emt 0:04:27]} h5 {[%emt 0:01:43]} 30. Qd1 {[%emt 0:00:31]} Kh7 {[%emt 0:03:41]} 31. Qd3+ {[%emt 0:01:41]} g6 {[%emt 0:00:17]} 32. Rd8 {[%emt 0:02:01]} Bc5 {[%emt 0:02:35]} 33. Qd5 {[%emt 0:01:09]} Qg7 {[%emt 0:00:25]} 34. a4 {[%emt 0:01:18]} g5 {[%emt 0:00:41]} 35. Qd3+ {[%emt 0:05:22]} Kh6 {[%emt 0:00:50]} 36. Qf5 {[%emt 0:01:06]} a5 {[%emt 0:00:52]} 37. bxa6 {[%emt 0:01:20]} Rxc6 {[%emt 0:00:26]} 38. a7 {[%emt 0:00:16]} 1-0

[Event "69th RUS-ch Women Higher League 2019"]
[Site "Yaroslavl"]
[Date "2019.07.03"]
[Round "6.10"]
[White "Mukhina, Jana"]
[Black "Solozhenkina, Elizaveta"]
[Result "0-1"]
[ECO "B93"]
[WhiteElo "2090"]
[BlackElo "2324"]
[Annotator "NA"]
[PlyCount "64"]
[EventDate "2019.06.27"]
[EventType "swiss"]
[EventCountry "RUS"]
[SourceTitle "playchess.com"]
[Source "ChessBase"]
[SourceQuality "1"]
[TimeControl "40/5400+30:1800+30"]

1. e4 {[%emt 0:00:09]} c5 {[%emt 0:00:00]} 2. Nf3 {[%emt 0:00:04]} d6 {[%emt 0:00:00]} 3. d4 {[%emt 0:00:47]} cxd4 {[%emt 0:00:00]} 4. Nxd4 {[%emt 0:00:02]} Nf6 {[%emt 0:00:11]} 5. Nc3 {[%emt 0:00:01]} a6 {[%emt 0:00:12]} 6. f4 {[%emt 0:00:07]} e5 {[%emt 0:00:29]} 7. Nf3 {[%emt 0:00:09]} Nbd7 {[%emt 0:00:36]} 8. a4 {[%emt 0:00:31]} Be7 {[%emt 0:03:03]} 9. Bd3 {[%emt 0:00:14]} O-O {[%emt 0:00:53]} 10. O-O {[%emt 0:00:13]} Nc5 {[%emt 0:04:27]} 11. Kh1 {[%emt 0:04:02]} d5 {[%emt 0:02:29]} 12. Nxe5 {[%emt 0:01:49]} Nfxe4 {[%emt 0:08:55]} 13. Bxe4 {[%emt 0:09:24]} dxe4 {[%emt 0:00:11]} 14. b4 {[%emt 0:05:18]} Nd7 {[%emt 0:23:54]} 15. Rb1 {[%emt 0:18:16]} a5 {[%emt 0:09:53]} 16. b5 {[%emt 0:08:52]} Nxe5 {[%emt 0:03:20]} 17. fxe5 {[%emt 0:00:43]} Qxd1 {[%emt 0:02:48]} 18. Rxd1 Bg4 {[%emt 0:01:27]} 19. Rd4 {[%emt 0:06:07]} f6 {[%emt 0:08:21]} 20. Rxe4 {[%emt 0:14:15]} fxe5 {[%emt 0:03:13]} 21. Bb2 {[%emt 0:01:24]} Bf5 {[%emt 0:01:33]} 22. Re2 {[%emt 0:06:11]} Rac8 {[%emt 0:03:09]} 23. Nd5 {[%emt 0:01:53]} Bd6 {[%emt 0:03:41]} 24. Rc1 {[%emt 0:08:26]} Rxc2 {[%emt 0:02:27]} 25. Rexc2 {[%emt 0:01:59]} Bxc2 {[%emt 0:00:05]} 26. Nb6 {[%emt 0:03:13]} Bb3 {[%emt 0:11:24]} 27. Bc3 {[%emt 0:01:16]} e4 {[%emt 0:01:47]} 28. Bxa5 {[%emt 0:01:51]} e3 {[%emt 0:00:59]} 29. Nd7 {[%emt 0:06:27]} Rf2 {[%emt 0:02:04]} 30. Bb6 {[%emt 0:00:44]} Bd5 {[%emt 0:00:22]} 31. Bxe3 {[%emt 0:00:31]} Rxg2 {[%emt 0:00:22]} 32. Rd1 {[%emt 0:00:29]} Rd2+ 0-1

[Event "69th RUS-ch Women Higher League 2019"]
[Site "Yaroslavl"]
[Date "2019.07.03"]
[Round "6.11"]
[White "Belenkaya, Dina"]
[Black "Garifullina, Leya"]
[Result "0-1"]
[ECO "C50"]
[WhiteElo "2321"]
[BlackElo "2246"]
[Annotator "NA"]
[PlyCount "104"]
[EventDate "2019.06.27"]
[EventType "swiss"]
[EventCountry "RUS"]
[SourceTitle "playchess.com"]
[Source "ChessBase"]
[SourceQuality "1"]
[TimeControl "40/5400+30:1800+30"]

1. e4 {[%emt 0:00:00]} e5 {[%emt 0:00:00]} 2. Nf3 {[%emt 0:00:00]} Nc6 {[%emt 0:00:00]} 3. Bc4 {[%emt 0:00:00]} Bc5 {[%emt 0:00:17]} 4. d3 {[%emt 0:00:30]} Nf6 {[%emt 0:00:24]} 5. Nc3 {[%emt 0:00:17]} d6 {[%emt 0:00:25]} 6. Na4 {[%emt 0:00:16]} Bb6 {[%emt 0:00:36]} 7. Nxb6 {[%emt 0:01:18]} axb6 {[%emt 0:00:07]} 8. Bg5 {[%emt 0:00:14]} h6 {[%emt 0:00:39]} 9. Bh4 {[%emt 0:00:11]} Na5 {[%emt 0:03:43]} 10. Qe2 {[%emt 0:03:43]} Qe7 {[%emt 0:04:00]} 11. Nd2 {[%emt 0:02:46]} Nxc4 {[%emt 0:01:26]} 12. dxc4 {[%emt 0:00:44]} Bd7 {[%emt 0:00:51]} 13. b3 {[%emt 0:01:16]} Bc6 {[%emt 0:01:24]} 14. a4 {[%emt 0:05:25]} Qe6 {[%emt 0:02:09]} 15. Rd1 {[%emt 0:10:34]} Nd7 {[%emt 0:02:41]} 16. Nf1 {[%emt 0:02:21]} f5 {[%emt 0:07:05]} 17. exf5 {[%emt 0:00:32]} Qxf5 {[%emt 0:00:05]} 18. Ne3 {[%emt 0:00:27]} Qg6 {[%emt 0:02:13]} 19. O-O {[%emt 0:01:36]} O-O {[%emt 0:00:06]} 20. f3 {[%emt 0:09:09]} Nc5 {[%emt 0:01:23]} 21. Nd5 {[%emt 0:01:31]} Bxd5 {[%emt 0:00:36]} 22. cxd5 {[%emt 0:02:10]} Rf7 {[%emt 0:00:58]} 23. Bg3 {[%emt 0:02:36]} Raf8 {[%emt 0:00:52]} 24. Qc4 {[%emt 0:00:48]} Qg5 {[%emt 0:02:14]} 25. Rfe1 {[%emt 0:05:54]} Qd8 {[%emt 0:01:31]} 26. a5 {[%emt 0:04:19]} Nd7 {[%emt 0:07:03]} 27. Qb5 {[%emt 0:06:54]} Qg5 {[%emt 0:01:36]} 28. Re4 {[%emt 0:02:23]} bxa5 {[%emt 0:01:41]} 29. Rg4 {[%emt 0:03:40]} Qf5 {[%emt 0:00:44]} 30. Rc4 {[%emt 0:01:46]} Nc5 {[%emt 0:04:29]} 31. Qxa5 {[%emt 0:01:47]} Qd7 {[%emt 0:05:08]} 32. Ra1 {[%emt 0:03:41]} b5 {[%emt 0:02:42]} 33. Rb4 {[%emt 0:01:56]} Qf5 {[%emt 0:01:29]} 34. Qxb5 {[%emt 0:09:48]} Qxc2 {[%emt 0:00:38]} 35. Rc4 {[%emt 0:07:06]} Qd3 {[%emt 0:07:49]} 36. Bf2 {[%emt 0:07:20]} e4 {[%emt 0:01:17]} 37. Re1 {[%emt 0:01:28]} exf3 {[%emt 0:02:45]} 38. Rxc5 {[%emt 0:00:19]} Qg6 {[%emt 0:00:07]} 39. g3 {[%emt 0:01:33]} dxc5 {[%emt 0:00:05]} 40. Qxc5 {[%emt 0:00:00]} Qf5 {[%emt 0:00:00]} 41. Qc4 {[%emt 0:01:52]} Kh7 {[%emt 0:02:14]} 42. h4 {[%emt 0:04:48]} Rd7 {[%emt 0:02:39]} 43. Rd1 {[%emt 0:00:56]} Qh3 {[%emt 0:01:18]} 44. Qf1 {[%emt 0:00:49]} Qxf1+ {[%emt 0:00:06]} 45. Kxf1 {[%emt 0:00:12]} Rf5 {[%emt 0:00:32]} 46. b4 {[%emt 0:03:31]} Rfxd5 {[%emt 0:00:15]} 47. Rxd5 {[%emt 0:01:00]} Rxd5 {[%emt 0:00:04]} 48. Be3 {[%emt 0:00:02]} Rd3 {[%emt 0:00:41]} 49. Kf2 {[%emt 0:00:11]} Rb3 {[%emt 0:00:06]} 50. Bc5 {[%emt 0:00:26]} h5 {[%emt 0:00:17]} 51. Bf8 {[%emt 0:00:38]} Kg6 {[%emt 0:00:38]} 52. Bc5 {[%emt 0:00:47]} Kf5 {[%emt 0:00:07]} 0-1

[Event "69th RUS-ch Women Higher League 2019"]
[Site "Yaroslavl"]
[Date "2019.07.03"]
[Round "6.12"]
[White "Dimitrova, Aleksandra"]
[Black "Lysenko, Margarita"]
[Result "0-1"]
[ECO "B90"]
[WhiteElo "2273"]
[BlackElo "2224"]
[Annotator "NA"]
[PlyCount "110"]
[EventDate "2019.06.27"]
[EventType "swiss"]
[EventCountry "RUS"]
[SourceTitle "playchess.com"]
[Source "ChessBase"]
[SourceQuality "1"]
[TimeControl "40/5400+30:1800+30"]

1. e4 {[%emt 0:00:00]} c5 {[%emt 0:00:00]} 2. Nf3 {[%emt 0:00:00]} d6 {[%emt 0:00:00]} 3. d4 {[%emt 0:00:00]} cxd4 {[%emt 0:00:05]} 4. Nxd4 {[%emt 0:00:00]} Nf6 {[%emt 0:00:09]} 5. Nc3 {[%emt 0:00:00]} a6 {[%emt 0:00:08]} 6. Nb3 {[%emt 0:00:00]} Nbd7 {[%emt 0:01:41]} 7. a4 {[%emt 0:01:45]} b6 {[%emt 0:04:50]} 8. g4 {[%emt 0:02:55]} Bb7 {[%emt 0:00:22]} 9. Bg2 {[%emt 0:00:27]} h6 {[%emt 0:16:18]} 10. Qe2 {[%emt 0:01:34]} g5 {[%emt 0:10:45]} 11. h4 {[%emt 0:11:30]} Rg8 {[%emt 0:01:10]} 12. hxg5 {[%emt 0:00:11]} hxg5 {[%emt 0:00:07]} 13. Be3 {[%emt 0:04:27]} e6 {[%emt 0:14:11]} 14. f3 {[%emt 0:18:42]} Ne5 {[%emt 0:20:55]} 15. Rd1 {[%emt 0:09:32]} Qc7 {[%emt 0:02:02]} 16. Nd4 {[%emt 0:02:10]} Rc8 {[%emt 0:12:00]} 17. Bc1 {[%emt 0:08:56]} Be7 {[%emt 0:03:14]} 18. Rh6 {[%emt 0:02:11]} Nfd7 {[%emt 0:02:03]} 19. Bh1 {[%emt 0:02:45]} Ng6 {[%emt 0:01:34]} 20. Qh2 {[%emt 0:09:17]} Qc5 {[%emt 0:00:33]} 21. Be3 {[%emt 0:06:51]} Qe5 {[%emt 0:01:43]} 22. Qf2 {[%emt 0:06:34]} Qg7 {[%emt 0:00:15]} 23. Rh2 {[%emt 0:01:07]} Nf4 {[%emt 0:01:33]} 24. Nce2 {[%emt 0:01:53]} Nxe2 {[%emt 0:00:25]} 25. Qxe2 {[%emt 0:00:21]} Qe5 {[%emt 0:01:05]} 26. c3 {[%emt 0:02:37]} d5 {[%emt 0:01:05]} 27. Rh5 {[%emt 0:03:12]} dxe4 {[%emt 0:00:36]} 28. f4 {[%emt 0:00:36]} Qc7 {[%emt 0:01:01]} 29. fxg5 {[%emt 0:00:07]} Nc5 {[%emt 0:02:14]} 30. Kf1 {[%emt 0:02:27]} Nd3 {[%emt 0:01:22]} 31. Rh7 {[%emt 0:01:43]} Qg3 {[%emt 0:00:46]} 32. Bg2 {[%emt 0:00:46]} Bd5 {[%emt 0:00:24]} 33. Rh3 {[%emt 0:00:45]} Qe5 {[%emt 0:00:29]} 34. Kg1 {[%emt 0:00:32]} Bxg5 {[%emt 0:00:22]} 35. Rh5 {[%emt 0:00:37]} Nf4 {[%emt 0:00:43]} 36. Bxf4 {[%emt 0:00:10]} Qxf4 {[%emt 0:00:06]} 37. Qxa6 {[%emt 0:00:50]} Rd8 {[%emt 0:01:34]} 38. Qb5+ {[%emt 0:00:31]} Kf8 {[%emt 0:00:24]} 39. Qe2 {[%emt 0:00:25]} Qe3+ {[%emt 0:00:35]} 40. Kh1 {[%emt 0:00:00]} Qxe2 {[%emt 0:00:00]} 41. Nxe2 {[%emt 0:00:31]} Ke7 {[%emt 0:02:23]} 42. Ng3 {[%emt 0:10:40]} Bf4 {[%emt 0:10:47]} 43. Ne2 {[%emt 0:03:26]} Bc7 {[%emt 0:01:57]} 44. c4 {[%emt 0:03:15]} Bxc4 {[%emt 0:10:50]} 45. Rc1 {[%emt 0:00:29]} Bxe2 {[%emt 0:00:15]} 46. Rxc7+ {[%emt 0:00:04]} Rd7 {[%emt 0:00:20]} 47. Rxd7+ {[%emt 0:04:02]} Kxd7 {[%emt 0:00:11]} 48. a5 {[%emt 0:01:38]} Bxg4 {[%emt 0:03:38]} 49. Rh7 {[%emt 0:01:10]} Ke7 {[%emt 0:00:54]} 50. Bxe4 {[%emt 0:03:28]} bxa5 {[%emt 0:00:12]} 51. Kh2 {[%emt 0:00:34]} Rg5 {[%emt 0:01:06]} 52. Rh8 {[%emt 0:00:34]} Rh5+ {[%emt 0:00:16]} 53. Rxh5 {[%emt 0:00:04]} Bxh5 {[%emt 0:00:07]} 54. Kg3 {[%emt 0:00:07]} e5 {[%emt 0:01:02]} 55. Kf2 {[%emt 0:00:14]} Bg6 {[%emt 0:00:16]} 0-1

[Event "69th RUS-ch Women Higher League 2019"]
[Site "Yaroslavl"]
[Date "2019.07.03"]
[Round "6.13"]
[White "Khokhlova, Daria"]
[Black "Bulatova, Kamaliya"]
[Result "0-1"]
[ECO "E47"]
[WhiteElo "2234"]
[BlackElo "2102"]
[Annotator "NA"]
[PlyCount "62"]
[EventDate "2019.06.27"]
[EventType "swiss"]
[EventCountry "RUS"]
[SourceTitle "playchess.com"]
[Source "ChessBase"]
[SourceQuality "1"]
[TimeControl "40/5400+30:1800+30"]

1. d4 {[%emt 0:00:00]} Nf6 {[%emt 0:00:00]} 2. c4 {[%emt 0:00:00]} e6 {[%emt 0:00:00]} 3. Nc3 {[%emt 0:00:00]} Bb4 {[%emt 0:00:00]} 4. e3 {[%emt 0:00:00]} O-O {[%emt 0:00:00]} 5. Bd3 {[%emt 0:00:00]} c5 {[%emt 0:00:00]} 6. Nf3 {[%emt 0:01:52]} d5 {[%emt 0:00:01]} 7. O-O {[%emt 0:00:09]} cxd4 {[%emt 0:00:04]} 8. exd4 {[%emt 0:00:08]} dxc4 {[%emt 0:00:04]} 9. Bxc4 {[%emt 0:00:04]} b6 {[%emt 0:00:03]} 10. Bg5 {[%emt 0:00:56]} Bb7 {[%emt 0:00:07]} 11. Qe2 {[%emt 0:02:53]} Bxc3 {[%emt 0:00:31]} 12. bxc3 {[%emt 0:00:02]} Nbd7 {[%emt 0:00:13]} 13. Bd3 {[%emt 0:03:20]} Qc7 {[%emt 0:01:08]} 14. Rac1 {[%emt 0:04:45]} Ng4 {[%emt 0:02:40]} 15. Be4 {[%emt 0:01:37]} Bxe4 {[%emt 0:00:47]} 16. Qxe4 {[%emt 0:00:01]} Ngf6 {[%emt 0:00:17]} 17. Qe2 {[%emt 0:01:34]} Rac8 {[%emt 0:03:01]} 18. c4 {[%emt 0:01:45]} Qb7 {[%emt 0:04:05]} 19. Rfe1 {[%emt 0:02:25]} h6 {[%emt 0:02:31]} 20. Bh4 {[%emt 0:02:53]} Rfe8 {[%emt 0:08:17]} 21. h3 {[%emt 0:05:40]} Nh5 {[%emt 0:08:50]} 22. Qe3 {[%emt 0:04:56]} Qa6 {[%emt 0:09:07]} 23. Ne5 {[%emt 0:05:41]} Nhf6 {[%emt 0:00:53]} 24. f4 {[%emt 0:02:42]} Rc7 {[%emt 0:05:18]} 25. Qf2 {[%emt 0:09:16]} Rec8 {[%emt 0:08:38]} 26. f5 {[%emt 0:06:56]} Nxe5 {[%emt 0:05:49]} 27. dxe5 {[%emt 0:01:48]} Nd7 {[%emt 0:01:11]} 28. f6 {[%emt 0:09:50]} Rxc4 {[%emt 0:07:31]} 29. Rcd1 {[%emt 0:02:43]} Qa4 {[%emt 0:02:30]} 30. Qg3 {[%emt 0:05:55]} g6 {[%emt 0:00:29]} 31. Qd3 {[%emt 0:04:40]} Nc5 {[%emt 0:02:30]} 0-1

[Event "69th RUS-ch Women Higher League 2019"]
[Site "Yaroslavl"]
[Date "2019.07.03"]
[Round "6.14"]
[White "Kabanova, Ekaterina"]
[Black "Nosacheva, Mariya"]
[Result "1-0"]
[ECO "E71"]
[WhiteElo "2099"]
[BlackElo "2150"]
[Annotator "NA"]
[PlyCount "63"]
[EventDate "2019.06.27"]
[EventType "swiss"]
[EventCountry "RUS"]
[SourceTitle "playchess.com"]
[Source "ChessBase"]
[SourceQuality "1"]
[TimeControl "40/5400+30:1800+30"]

1. d4 {[%emt 0:01:14]} Nf6 {[%emt 0:00:00]} 2. c4 {[%emt 0:01:03]} g6 {[%emt 0:00:00]} 3. Nc3 {[%emt 0:00:08]} Bg7 {[%emt 0:00:10]} 4. e4 {[%emt 0:01:24]} d6 {[%emt 0:00:34]} 5. h3 {[%emt 0:00:06]} O-O {[%emt 0:00:30]} 6. Be3 {[%emt 0:00:49]} Na6 {[%emt 0:01:20]} 7. g4 {[%emt 0:00:34]} c5 {[%emt 0:04:28]} 8. d5 {[%emt 0:00:33]} e6 {[%emt 0:03:16]} 9. g5 {[%emt 0:03:57]} Ne8 {[%emt 0:05:36]} 10. Nge2 {[%emt 0:04:23]} Nec7 {[%emt 0:09:15]} 11. Ng3 {[%emt 0:06:00]} exd5 {[%emt 0:07:59]} 12. exd5 {[%emt 0:00:47]} b5 {[%emt 0:06:39]} 13. cxb5 {[%emt 0:01:35]} Nb4 {[%emt 0:00:25]} 14. Bg2 {[%emt 0:05:02]} c4 {[%emt 0:01:35]} 15. O-O {[%emt 0:00:53]} Nd3 {[%emt 0:03:29]} 16. Qd2 {[%emt 0:03:15]} a6 {[%emt 0:08:35]} 17. b6 {[%emt 0:11:07]} Nb5 {[%emt 0:01:12]} 18. Nge2 {[%emt 0:00:19]} Nxc3 {[%emt 0:03:52]} 19. bxc3 {[%emt 0:01:03]} Nc5 {[%emt 0:03:47]} 20. Rab1 {[%emt 0:04:54]} Rb8 {[%emt 0:01:07]} 21. Nd4 {[%emt 0:01:06]} Rxb6 {[%emt 0:02:28]} 22. Nc6 {[%emt 0:00:09]} Qc7 {[%emt 0:02:59]} 23. Rxb6 {[%emt 0:00:25]} Qxb6 {[%emt 0:00:16]} 24. Bd4 {[%emt 0:00:20]} Re8 {[%emt 0:03:04]} 25. Re1 {[%emt 0:03:05]} Rxe1+ {[%emt 0:03:18]} 26. Qxe1 {[%emt 0:00:35]} Bd7 {[%emt 0:01:13]} 27. Qe7 {[%emt 0:01:50]} Bxc6 {[%emt 0:10:01]} 28. Bxc5 {[%emt 0:07:27]} dxc5 {[%emt 0:02:43]} 29. dxc6 {[%emt 0:00:29]} Bf8 {[%emt 0:00:25]} 30. Qd7 {[%emt 0:00:52]} Qb1+ {[%emt 0:00:51]} 31. Bf1 {[%emt 0:00:40]} Qc1 {[%emt 0:00:38]} 32. c7 {[%emt 0:00:18]} 1-0

[Event "69th RUS-ch Women Higher League 2019"]
[Site "Yaroslavl"]
[Date "2019.07.03"]
[Round "6.15"]
[White "Bivol, Alina"]
[Black "Matveeva, Olga"]
[Result "1-0"]
[ECO "A15"]
[WhiteElo "2391"]
[BlackElo "2189"]
[Annotator "NA"]
[PlyCount "75"]
[EventDate "2019.06.27"]
[EventType "swiss"]
[EventCountry "RUS"]
[SourceTitle "playchess.com"]
[Source "ChessBase"]
[SourceQuality "1"]
[TimeControl "40/5400+30:1800+30"]

1. c4 {[%emt 0:00:00]} Nf6 {[%emt 0:00:00]} 2. g3 {[%emt 0:00:04]} g6 {[%emt 0:00:09]} 3. Bg2 {[%emt 0:00:19]} Bg7 {[%emt 0:00:30]} 4. Nc3 {[%emt 0:00:11]} O-O {[%emt 0:00:28]} 5. Nf3 {[%emt 0:01:08]} d6 {[%emt 0:00:43]} 6. O-O {[%emt 0:00:47]} Nc6 {[%emt 0:01:08]} 7. d3 {[%emt 0:01:29]} e5 {[%emt 0:01:58]} 8. Rb1 {[%emt 0:00:07]} Ne8 {[%emt 0:06:19]} 9. b4 {[%emt 0:05:52]} f5 {[%emt 0:01:16]} 10. Bg5 {[%emt 0:02:46]} Nf6 {[%emt 0:02:02]} 11. Nd5 {[%emt 0:01:18]} Ne7 {[%emt 0:01:33]} 12. Nxf6+ {[%emt 0:02:24]} Bxf6 {[%emt 0:00:05]} 13. Bxf6 {[%emt 0:02:41]} Rxf6 {[%emt 0:00:04]} 14. Qd2 {[%emt 0:01:41]} Rb8 {[%emt 0:12:56]} 15. c5 {[%emt 0:07:12]} Be6 {[%emt 0:07:35]} 16. cxd6 {[%emt 0:04:02]} cxd6 {[%emt 0:00:18]} 17. Rfc1 {[%emt 0:06:32]} Bd5 {[%emt 0:11:13]} 18. a4 {[%emt 0:04:32]} Kg7 {[%emt 0:10:05]} 19. b5 {[%emt 0:02:32]} Rf8 {[%emt 0:02:59]} 20. e4 {[%emt 0:04:49]} Bg8 {[%emt 0:05:06]} 21. exf5 {[%emt 0:00:42]} Nxf5 {[%emt 0:01:59]} 22. Rb2 {[%emt 0:03:26]} Qd7 {[%emt 0:02:26]} 23. Rbc2 {[%emt 0:03:25]} Rbc8 {[%emt 0:00:28]} 24. Rc3 {[%emt 0:00:09]} Bd5 {[%emt 0:02:01]} 25. Ng5 {[%emt 0:02:04]} Bxg2 {[%emt 0:00:57]} 26. Rc7 {[%emt 0:04:59]} Rxc7 {[%emt 0:01:32]} 27. Rxc7 {[%emt 0:00:01]} Qxc7 {[%emt 0:00:18]} 28. Ne6+ {[%emt 0:00:01]} Kh8 {[%emt 0:04:54]} 29. Nxc7 {[%emt 0:00:06]} Bf3 {[%emt 0:00:55]} 30. Ne6 {[%emt 0:01:19]} Rc8 {[%emt 0:01:00]} 31. Qg5 {[%emt 0:08:41]} Kg8 {[%emt 0:01:47]} 32. g4 {[%emt 0:01:45]} Ng7 {[%emt 0:06:06]} 33. Nxg7 {[%emt 0:01:16]} Kxg7 {[%emt 0:00:04]} 34. Qe7+ {[%emt 0:01:06]} Kh6 {[%emt 0:00:05]} 35. h4 {[%emt 0:00:30]} Bd5 {[%emt 0:00:41]} 36. g5+ {[%emt 0:00:15]} Kh5 {[%emt 0:00:05]} 37. Qxh7+ {[%emt 0:00:05]} Kg4 {[%emt 0:00:06]} 38. Qd7+ {[%emt 0:00:04] Ra8} 1-0